bitfinex/quotes_SOLUSD_20240906
["timestamp","ask_amount","ask_price","bid_price","bid_amount"]
[1725643836968,20.0,127.34,127.3,7.8552]
[1725643837377,20.0,127.34,127.29,27.4959]
[1725643837545,21.9636355,127.34,127.27,20.07100825]
[1725643837750,52.8536,127.33,127.27,20.07100825]
[1725643838266,20.0,127.32,127.27,20.07100825]
[1725643838778,27.8543,127.32,127.27,20.07100825]
[1725643839073,20.0,127.32,127.27,27.92810825]
[1725643839851,27.8546,127.32,127.27,0.42780825]
[1725643840848,7.8566,127.28,127.27,0.42780825]
[1725643841053,7.8573,127.27,127.21,7.8607]
[1725643841265,20.0,127.26,127.21,7.8607]
[1725643841648,20.0,127.26,127.22,7.8603]
[1725643841855,20.0,127.28,127.22,7.8603]
[1725643842161,65.0,127.28,127.22,7.8603]
[1725643842644,72.857,127.28,127.22,7.8603]
[1725643842845,20.0,127.28,127.24,7.8587]
[1725643843180,22.545,127.33,127.26,7.8573]
[1725643843364,22.545,127.33,127.26,19.6446]
[1725643843668,22.545,127.33,127.27,7.8569]
[1725643843846,22.545,127.33,127.26,27.5023]
[1725643844048,7.8544,127.32,127.25,7.858]
[1725643844270,24.50914922,127.33,127.24,7.8589]
[1725643844463,7.8554,127.3,127.24,7.8589]
[1725643844662,7.8554,127.3,127.23,27.5076]
[1725643844849,45.0,127.29,127.23,27.5076]
[1725643845057,45.0,127.29,127.24,7.8589]
[1725643845373,45.0,127.29,127.23,19.648]
[1725643845374,44.95847264,127.29,127.23,27.5073]
[1725643845570,20.0,127.28,127.23,27.5073]
[1725643846279,20.0,127.28,127.24,7.859]
[1725643846774,7.8549,127.31,127.25,7.8581]
[1725643847074,20.0,127.3,127.25,27.5043]
[1725643847457,27.8549,127.31,127.25,27.5043]
[1725643847662,20.0,127.31,127.25,19.646]
[1725643847865,20.0,127.32,127.25,19.646]
[1725643848063,20.0,127.32,127.27,7.8569]
[1725643848269,20.0,127.32,127.26,7.8576]
[1725643848571,20.0,127.32,127.27,7.8571]
[1725643849273,20.0,127.32,127.25,27.5045]
[1725643849274,7.8552,127.31,127.25,27.5045]
[1725643849474,20.0,127.3,127.25,27.5045]
[1725643849774,20.0,127.3,127.26,7.8578]
[1725643850279,20.0,127.3,127.25,19.646]
[1725643850280,27.8549,127.31,127.25,19.646]
[1725643850448,20.0,127.32,127.25,19.646]
[1725643850779,7.8564,127.29,127.23,7.8595]
[1725643851278,74.82109866,127.28,127.22,27.5097]
[1725643851576,27.8567,127.28,127.22,27.5097]
[1725643851960,45.0,127.27,127.22,27.5097]
[1725643852287,45.0,127.27,127.17,22.662]
[1725643852288,21.96468222,127.26,127.17,22.662]
[1725643852450,21.96468222,127.26,127.19,7.8622]
[1725643852451,7.859,127.25,127.19,7.8622]
[1725643852653,20.0,127.24,127.18,19.657]
[1725643852869,20.0,127.24,127.2,19.6537]
[1725643853075,67.0457,127.27,127.19,1.57220038]
[1725643853076,22.0457,127.27,127.21,44.20896985]
[1725643853279,20.0,127.26,127.22,19.6503]
[1725643853603,20.0,127.26,127.22,27.5102]
[1725643854084,20.0,127.26,127.23,7.8593]
[1725643854250,20.0,127.27,127.23,7.8593]
[1725643854586,27.8567,127.28,127.22,27.5105]
[1725643854780,7.8573,127.27,127.22,19.6503]
[1725643854976,7.8573,127.27,127.19,27.516]
[1725643854977,7.8585,127.25,127.19,27.516]
[1725643855179,20.0,127.24,127.19,27.516]
[1725643855478,45.0,127.23,127.19,19.6543]
[1725643856281,20.0,127.24,127.16,19.659]
[1725643856583,21.96517207,127.27,127.16,1.57225274]
[1725643856787,45.0,127.26,127.18,19.6569]
[1725643856955,20.0,127.25,127.18,19.6569]
[1725643857161,7.8598,127.23,127.18,19.6569]
[1725643857365,7.8598,127.23,127.17,7.863]
[1725643857571,20.0,127.22,127.17,7.863]
[1725643858265,1.96546582,127.21,127.16,7.864]
[1725643858469,20.0,127.22,127.17,7.8632]
[1725643858876,20.0,127.22,127.16,1.57249209]
[1725643858877,20.0,127.22,127.16,45.78122729]
[1725643859179,20.0,127.23,127.19,19.6549]
[1725643859770,20.0,127.23,127.19,7.862]
[1725643860279,20.0,127.23,127.18,27.519]
[1725643860482,6.2088,127.26,127.21,7.8608]
[1725643860694,6.2088,127.26,127.23,7.8592]
[1725643860981,22.6458,127.31,127.2,44.20896985]
[1725643861181,22.6458,127.31,127.17,39.3156]
[1725643861182,7.8579,127.26,127.21,19.6513]
[1725643861480,7.8589,127.25,127.19,7.8622]
[1725643861778,7.8582,127.26,127.2,7.8615]
[1725643861998,7.8582,127.26,127.21,7.8609]
[1725643862394,20.0,127.25,127.21,7.8609]
[1725643862705,20.0,127.25,127.2,27.5151]
[1725643862905,20.0,127.25,127.17,19.6574]
[1725643863077,47.1422,127.3,127.14,81.0622]
[1725643863078,68.70205146,127.24,127.14,81.0622]
[1725643863278,7.8608,127.22,127.16,7.8636]
[1725643863685,20.0,127.21,127.16,7.8636]
[1725643863998,20.0,127.21,127.16,7.8639]
[1725643865000,27.8611,127.21,127.15,7.8645]
[1725643865211,6.6622,127.19,127.11,19.667]
[1725643865402,6.6622,127.19,127.11,27.5336]
[1725643865403,27.863,127.18,127.11,27.5336]
[1725643865574,16.5994,127.17,127.09,7.868]
[1725643865775,7.8655,127.14,127.08,27.54]
[1725643865994,20.0,127.16,127.08,27.54]
[1725643866202,20.0,127.16,127.09,7.8683]
[1725643866403,52.865,127.15,127.09,7.3683]
[1725643866706,20.0,127.14,127.09,7.3683]
[1725643867023,27.8656,127.14,127.08,27.5403]
[1725643867324,45.0,127.13,127.05,19.6761]
[1725643867625,20.0,127.14,127.07,44.20896985]
[1725643867930,14.5245,127.19,127.13,7.8658]
[1725643868217,14.5245,127.19,127.12,7.8664]
[1725643868424,6.6622,127.19,127.15,7.8645]
[1725643868632,15.3934,127.21,127.13,44.20896985]
[1725643868796,15.3934,127.21,127.13,45.78142348]
[1725643869395,6.5593,127.23,127.18,7.8626]
[1725643870000,6.5593,127.23,127.17,19.6579]
[1725643870429,14.4196,127.23,127.17,19.6579]
[1725643870803,7.8614,127.21,127.15,7.8644]
[1725643871005,45.0,127.2,127.14,19.6623]
[1725643871199,66.96603394,127.2,127.12,7.8663]
[1725643871398,7.8623,127.19,127.12,7.8663]
[1725643871622,65.0,127.18,127.12,7.8663]
[1725643871810,1.96630869,127.17,127.11,27.5338]
[1725643872002,65.0,127.18,127.11,27.5338]
[1725643872202,72.863,127.18,127.11,27.5338]
[1725643872625,72.863,127.18,127.12,9.43922985]
[1725643873130,72.863,127.18,127.12,9.43913634]
[1725643873504,6.5593,127.23,127.13,1.57293102]
[1725643873700,7.8605,127.22,127.16,7.8636]
[1725643874013,14.4192,127.23,127.17,7.8634]
[1725643874935,6.5593,127.23,127.18,7.8628]
[1725643875136,6.5593,127.23,127.15,44.20896985]
[1725643875433,6.5593,127.23,127.2,7.8615]
[1725643875606,15.0162,127.25,127.21,7.8608]
[1725643876115,15.0162,127.25,127.19,19.6552]
[1725643876304,15.0162,127.25,127.2,7.8613]
[1725643876503,20.0,127.24,127.2,7.8613]
[1725643877417,29.5358,127.29,127.21,1.57187009]
[1725643877725,29.5358,127.29,127.23,27.5084]
[1725643878043,1.96452425,127.28,127.22,7.8601]
[1725643878547,21.6796,127.29,127.22,7.8601]
[1725643878709,23.64426625,127.29,127.17,19.6579]
[1725643878913,19.6423,127.28,127.17,19.6579]
[1725643879123,7.8589,127.25,127.19,7.8622]
[1725643879321,45.0,127.24,127.19,7.8622]
[1725643879620,20.0,127.23,127.19,7.8622]
[1725643879831,1.96521504,127.31,127.21,19.6518]
[1725643880027,19.6369,127.32,127.21,19.6518]
[1725643880028,29.5361,127.29,127.23,7.8597]
[1725643880333,21.6796,127.29,127.25,7.8585]
[1725643880538,21.6796,127.29,127.23,19.6492]
[1725643880742,29.5361,127.29,127.23,27.5089]
[1725643881125,21.6796,127.29,127.23,19.6492]
[1725643881342,29.5356,127.29,127.23,27.5087]
[1725643882015,7.8567,127.28,127.23,27.5087]
[1725643882213,23.64423987,127.29,127.2,19.6529]
[1725643882443,20.0,127.28,127.17,25.15570786]
[1725643882738,7.8601,127.23,127.17,27.5203]
[1725643882945,7.8593,127.24,127.18,7.8628]
[1725643883118,7.8593,127.24,127.17,19.6573]
[1725643883119,65.0,127.23,127.19,7.8622]
[1725643883310,20.0,127.23,127.2,7.8614]
[1725643883760,7.8584,127.26,127.2,7.8614]
[1725643883917,72.8586,127.25,127.2,7.8614]
[1725643884115,52.8586,127.25,127.19,27.517]
[1725643884336,20.0,127.24,127.19,27.517]
[1725643884544,27.8592,127.24,127.19,19.655]
[1725643885041,7.8598,127.23,127.18,7.8624]
[1725643885241,27.8593,127.24,127.18,7.8624]
[1725643885446,27.8593,127.24,127.19,7.8621]
[1725643885661,27.8593,127.24,127.15,21.23247143]
[1725643885662,20.0,127.24,127.15,21.23247143]
[1725643885818,7.8598,127.23,127.17,7.8629]
[1725643886160,20.0,127.22,127.18,7.8623]
[1725643886320,20.0,127.22,127.17,19.6586]
[1725643886321,20.0,127.22,127.17,27.5219]
[1725643887543,7.8575,127.27,127.22,7.8602]
[1725643887721,41.3207,127.29,127.2,27.5154]
[1725643887722,7.8579,127.26,127.2,27.5154]
[1725643888264,7.8579,127.26,127.21,9.43287252]
[1725643888436,7.8579,127.26,127.21,7.8609]
[1725643889347,20.0,127.25,127.2,19.654]
[1725643889644,7.8587,127.25,127.2,19.654]
[1725643889845,20.0,127.24,127.2,27.5155]
[1725643890145,20.0,127.24,127.22,19.6507]
[1725643890359,24.65033999,127.29,127.22,19.6507]
[1725643890522,20.0,127.28,127.22,19.6507]
[1725643890839,7.8568,127.28,127.22,19.6507]
[1725643891050,7.8568,127.28,127.22,27.511]
[1725643892661,20.0,127.27,127.22,19.6507]
[1725643892862,27.8567,127.28,127.23,7.8596]
[1725643893759,7.8648,127.15,127.09,7.868]
[1725643893952,7.8624,127.19,127.1,1.57312472]
[1725643894153,20.0,127.18,127.14,7.8651]
[1725643894457,20.0,127.18,127.13,19.6642]
[1725643894458,27.8629,127.18,127.13,19.6642]
[1725643894664,27.8629,127.18,127.13,27.5301]
[1725643894853,20.0,127.18,127.13,27.5301]
[1725643895240,22.1879,127.25,127.15,19.6612]
[1725643895446,7.8608,127.22,127.16,9.43582018]
[1725643895781,20.0,127.21,127.16,9.43582018]
[1725643895967,22.1879,127.25,127.18,7.8627]
[1725643896152,22.1879,127.25,127.17,63.86726985]
[1725643896153,7.8592,127.24,127.17,63.86726985]
[1725643896354,7.8592,127.24,127.18,7.8623]
[1725643897540,30.0466,127.25,127.19,7.8621]
[1725643897981,7.858,127.26,127.19,21.22725658]
[1725643898146,7.8574,127.27,127.21,7.8609]
[1725643898346,13.9533,127.28,127.22,9.43197919]
[1725643899565,7.8579,127.26,127.2,19.6529]
[1725643899771,7.8577,127.27,127.21,7.8608]
[1725643899976,20.0,127.26,127.21,7.8608]
[1725643900269,21.96459192,127.26,127.2,19.6529]
[1725643900466,7.8581,127.26,127.2,27.5141]
[1725643900648,20.0,127.25,127.2,27.5141]
[1725643901350,7.8601,127.23,127.17,27.5206]
[1725643901566,7.8601,127.23,127.17,19.6573]
[1725643902481,7.8601,127.23,127.18,7.8628]
[1725643902773,7.8604,127.22,127.17,27.5205]
[1725643902972,20.0,127.21,127.14,19.6618]
[1725643903169,27.861,127.21,127.16,7.864]
[1725643903685,7.8618,127.2,127.15,7.8645]
[1725643904171,7.8618,127.2,127.11,25.56584462]
[1725643904172,7.8642,127.16,127.11,36.49964462]
[1725643904355,7.8647,127.15,127.1,7.8672]
[1725643904564,42.2277,127.21,127.08,8.96869748]
[1725643904565,20.0,127.14,127.08,8.96869748]
[1725643904763,20.0,127.14,127.06,7.8702]
[1725643904967,7.8672,127.11,127.05,27.5464]
[1725643905168,7.8678,127.1,127.05,27.5464]
[1725643905959,7.8678,127.1,127.05,19.676]
[1725643906660,21.96728369,127.09,127.02,19.6809]
[1725643906866,20.0,127.09,127.02,19.6809]
[1725643907073,7.8695,127.08,127.02,27.5536]
[1725643907274,66.96769774,127.07,126.98,8.97585213]
[1725643907477,66.96769774,127.07,126.93,20.84676851]
[1725643907478,7.874,127.0,126.93,20.84676851]
[1725643907685,7.8728,127.02,126.95,7.8765]
[1725643907888,7.8716,127.04,126.97,7.8757]
[1725643908194,20.0,127.03,126.98,7.8752]
[1725643908983,20.0,127.03,126.97,7.8758]
[1725643909289,20.0,127.03,126.98,19.6868]
[1725643909498,20.0,127.03,126.96,1.57463182]
[1725643909499,20.0,127.06,127.0,19.6838]
[1725643909681,21.63504341,127.12,126.99,1.57459472]
[1725643909682,7.8683,127.1,127.03,7.872]
[1725643909890,7.8688,127.09,127.02,27.5532]
[1725643910107,7.8688,127.09,127.02,19.6805]
[1725643910108,1.96775772,127.09,127.02,19.6805]
[1725643910279,7.8697,127.07,127.01,7.8732]
[1725643910470,7.8705,127.06,126.99,27.5603]
[1725643910672,7.8695,127.08,126.99,19.686]
[1725643910874,7.8695,127.08,127.02,7.8725]
[1725643911197,20.0,127.07,127.02,7.8725]
[1725643911396,65.0,127.07,127.02,7.8725]
[1725643911696,72.8696,127.07,127.02,7.8725]
[1725643911901,65.0,127.07,126.99,19.686]
[1725643912191,1.96790007,127.12,127.01,19.6826]
[1725643912396,7.8673,127.11,127.05,7.8703]
[1725643912584,7.8666,127.12,127.06,7.8701]
[1725643912772,23.88794763,127.13,127.05,19.6763]
[1725643912974,7.8674,127.11,127.05,27.5471]
[1725643913391,21.9203,127.13,127.06,1.57386]
[1725643913700,21.9203,127.13,127.08,7.869]
[1725643913701,29.7864,127.13,127.08,7.869]
[1725643913899,29.7864,127.13,127.07,7.8695]
[1725643914102,19.6581,127.18,127.09,7.8683]
[1725643914103,42.1303,127.18,127.09,7.8683]
[1725643914273,7.8648,127.15,127.09,7.8683]
[1725643914473,7.8654,127.14,127.09,7.8683]
[1725643914677,7.8641,127.16,127.1,7.8672]
[1725643914979,7.8641,127.16,127.09,27.5379]
[1725643915197,7.8648,127.15,127.09,27.5379]
[1725643915396,7.8648,127.15,127.1,7.8676]
[1725643915775,22.4722,127.18,127.11,7.867]
[1725643915988,7.864,127.17,127.11,7.867]
[1725643916276,7.8645,127.16,127.1,7.8676]
[1725643916484,7.8636,127.17,127.11,7.8671]
[1725643916896,7.8641,127.16,127.11,7.8671]
[1725643917096,1.96669659,127.15,127.09,19.6701]
[1725643917476,7.8654,127.14,127.09,19.6701]
[1725643917674,20.0,127.13,127.09,27.5384]
[1725643918097,20.0,127.14,127.09,19.6701]
[1725643918391,7.8664,127.13,127.07,7.8692]
[1725643918607,7.8664,127.13,127.06,19.6748]
[1725643918785,20.0,127.14,127.08,7.8689]
[1725643918786,27.8654,127.14,127.08,7.8689]
[1725643919695,20.0,127.14,127.09,7.8683]
[1725643920103,20.0,127.14,127.1,9.44108296]
[1725643920405,20.0,127.15,127.1,7.8677]
[1725643920600,46.96674987,127.14,127.08,19.6717]
[1725643921093,20.0,127.13,127.08,19.6717]
[1725643922296,21.96674733,127.13,127.05,19.6765]
[1725643922500,6.452,127.11,126.97,262.1516]
[1725643922676,7.8716,127.04,126.98,7.8748]
[1725643922877,7.8723,127.03,126.96,19.69]
[1725643923296,7.8717,127.04,126.98,7.8748]
[1725643923676,20.0,127.03,126.98,7.8748]
[1725643924079,20.0,127.03,126.99,7.8745]
[1725643924786,21.96832895,127.03,126.97,7.8756]
[1725643924977,7.8728,127.02,126.97,7.8756]
[1725643925195,7.8728,127.02,126.95,19.6915]
[1725643925196,7.8735,127.01,126.96,7.8762]
[1725643925578,14.2892,127.01,126.96,7.8762]
[1725643925787,46.96868693,127.0,126.92,19.6966]
[1725643925991,7.8753,126.98,126.92,19.6966]
[1725643926308,7.8765,126.96,126.9,7.8797]
[1725643926504,45.0,127.0,126.86,19.706]
[1725643926505,1.96946713,126.95,126.86,19.706]
[1725643926817,7.8796,126.91,126.86,19.706]
[1725643927173,1.96946713,126.95,126.83,7.8841]
[1725643927174,7.8807,126.9,126.83,7.8841]
[1725643927406,7.8807,126.9,126.84,7.8833]
[1725643927613,7.8796,126.91,126.85,7.8832]
[1725643927779,7.8777,126.94,126.86,1.57610627]
[1725643928100,7.8766,126.96,126.9,7.8801]
[1725643928303,39.6871,126.99,126.87,44.8362777]
[1725643928304,7.8759,126.97,126.91,1.57565372]
[1725643928490,45.0,127.0,126.9,19.6995]
[1725643928677,7.8752,126.98,126.92,7.8789]
[1725643929091,7.8759,126.97,126.91,7.8795]
[1725643929277,24.92723546,127.01,126.9,19.6995]
[1725643929480,7.8759,126.97,126.9,19.6995]
[1725643929690,7.8759,126.97,126.91,7.8795]
[1725643930486,7.8754,126.98,126.92,7.8789]
[1725643930689,20.0,126.97,126.92,7.8789]
[1725643930886,27.8759,126.97,126.91,7.8795]
[1725643932293,46.96953405,126.96,126.87,19.7045]
[1725643932500,7.8796,126.91,126.84,19.7089]
[1725643932711,7.8801,126.91,126.85,7.8828]
[1725643933421,7.8803,126.9,126.85,7.8828]
[1725643933590,7.8809,126.89,126.84,19.7089]
[1725643933791,9.85127701,126.89,126.84,19.7089]
[1725643934016,6.2688,126.92,126.84,19.7089]
[1725643934415,7.8806,126.9,126.84,27.5927]
[1725643934730,7.8806,126.9,126.85,7.8832]
[1725643934890,7.8806,126.9,126.85,9.45942659]
[1725643935093,7.8797,126.91,126.85,9.45942659]
[1725643935397,7.8797,126.91,126.86,7.8826]
[1725643935398,20.0,126.9,126.86,7.8826]
[1725643935595,7.8783,126.93,126.87,7.8819]
[1725643935803,20.0,126.92,126.87,7.8819]
[1725643936002,48.18546565,126.97,126.87,7.8819]
[1725643936207,7.8807,126.9,126.84,7.8837]
[1725643936511,7.8796,126.91,126.86,7.8826]
[1725643936721,20.0,126.9,126.85,7.8832]
[1725643936893,20.0,126.9,126.86,1.57625366]
[1725643937101,7.879,126.92,126.86,1.57625366]
[1725643937503,7.8782,126.94,126.87,21.28078548]
[1725643937810,6.5248,126.97,126.89,19.7013]
[1725643937998,6.5248,126.97,126.89,27.5819]
[1725643937999,7.8779,126.94,126.89,27.5819]
[1725643938198,6.5248,126.97,126.9,7.8802]
[1725643938400,7.8772,126.95,126.9,7.8802]
[1725643939006,7.8772,126.95,126.89,19.7013]
[1725643939007,42.8521,127.01,126.91,1.57569055]
[1725643939411,44.82151088,127.01,126.91,1.57569055]
[1725643939610,7.8763,126.97,126.91,9.45499055]
[1725643939825,7.8766,126.96,126.9,7.8796]
[1725643940205,19.6874,126.99,126.89,27.5819]
[1725643940407,7.8791,126.92,126.87,7.8816]
[1725643940621,21.97021289,126.91,126.86,19.7056]
[1725643940923,7.8812,126.89,126.84,7.8835]
[1725643941311,6.3098,126.92,126.83,19.7102]
[1725643941312,9.85203199,126.88,126.83,19.7102]
[1725643941520,7.8815,126.88,126.83,27.5942]
[1725643941831,7.8809,126.89,126.84,7.8836]
[1725643942414,7.8814,126.88,126.83,27.5946]
[1725643942822,1.97059928,126.91,126.79,1.57653724]
[1725643943028,7.8839,126.84,126.77,7.8881]
[1725643943228,7.8847,126.83,126.77,27.6079]
[1725643943607,7.884,126.84,126.77,19.7198]
[1725643943806,21.67487589,126.88,126.77,19.7198]
[1725643944006,7.8838,126.85,126.79,19.7169]
[1725643944204,45.0,126.87,126.75,39.4448]
[1725643944205,21.97116748,126.87,126.75,39.4448]
[1725643944432,7.8846,126.83,126.77,7.8881]
[1725643945129,7.8859,126.81,126.76,19.7217]
[1725643945304,1.97152534,126.83,126.74,7.8899]
[1725643945305,7.8865,126.8,126.74,7.8899]
[1725643945507,9.85920061,126.79,126.73,27.6171]
[1725643945727,7.888,126.78,126.73,27.6171]
[1725643945938,7.8872,126.79,126.73,27.6171]
[1725643946116,19.7089,126.85,126.75,19.7233]
[1725643946319,65.0,126.84,126.76,7.8887]
[1725643946525,66.9717425,126.84,126.75,27.6127]
[1725643947033,7.8847,126.83,126.77,7.8882]
[1725643947332,20.0,126.84,126.77,7.8882]
[1725643947333,7.8852,126.82,126.77,7.8882]
[1725643947522,7.8847,126.83,126.77,9.46540706]
[1725643947719,20.0,126.84,126.79,7.8865]
[1725643948014,19.7,126.91,126.8,1.57692601]
[1725643948208,19.7,126.91,126.81,19.714]
[1725643948404,21.6710096,126.91,126.81,19.714]
[1725643948625,7.8822,126.87,126.81,27.5993]
[1725643948930,7.8822,126.87,126.81,19.714]
[1725643949432,19.7025,126.89,126.76,72.01421715]
[1725643949641,20.0,126.88,126.77,1.57679099]
[1725643950316,19.7055,126.87,126.76,16.6524]
[1725643950614,21.97143409,126.86,126.72,109.59728418]
[1725643950813,45.0,126.85,126.72,109.59728418]
[1725643951016,7.8852,126.82,126.77,27.6076]
[1725643951227,7.8858,126.81,126.77,19.7198]
[1725643951409,7.8853,126.82,126.77,27.608]
[1725643952223,7.8853,126.82,126.78,7.8876]
[1725643953152,20.0,126.84,126.8,7.8859]
[1725643953318,19.7,126.91,126.78,53.78498418]
[1725643953639,7.8822,126.87,126.82,7.8849]
[1725643954723,7.8816,126.88,126.83,7.8844]
[1725643954921,21.67084372,126.91,126.81,19.7143]
[1725643955141,49.2366415,126.9,126.77,19.7194]
[1725643955325,7.8847,126.83,126.77,19.7194]
[1725643955526,19.7049,126.88,126.79,19.7173]
[1725643955731,20.0,126.87,126.8,7.8859]
[1725643955942,20.0,126.87,126.79,19.7173]
[1725643956129,20.0,126.87,126.74,6.4512]
[1725643956130,46.97141624,126.86,126.74,6.4512]
[1725643956448,20.0,126.85,126.74,6.4512]
[1725643956633,45.0,126.84,126.74,8.02849667]
[1725643956834,7.8848,126.83,126.77,19.7203]
[1725643957021,7.8837,126.85,126.8,7.8862]
[1725643957219,21.97141668,126.89,126.79,19.7171]
[1725643957421,7.8847,126.83,126.79,19.7171]
[1725643957635,7.8841,126.84,126.79,27.6037]
[1725643958230,7.8841,126.84,126.8,7.8863]
[1725643958449,21.67144739,126.91,126.82,7.885]
[1725643958636,7.8824,126.87,126.82,7.885]
[1725643959051,19.7022,126.89,126.81,19.7138]
[1725643959241,7.8837,126.85,126.8,7.886]
[1725643960453,7.8828,126.86,126.81,7.8856]
[1725643960628,42.0878,126.92,126.8,1.57667892]
[1725643960823,7.8816,126.88,126.83,7.8841]
[1725643961044,7.8816,126.88,126.83,9.46056321]
[1725643961352,7.8815,126.88,126.83,7.8843]
[1725643961845,42.0878,126.92,126.85,7.8828]
[1725643962047,7.8792,126.92,126.87,7.8817]
[1725643962253,7.8796,126.91,126.86,27.5891]
[1725643962453,7.8809,126.89,126.84,7.8834]
[1725643962754,7.8809,126.89,126.85,7.8833]
[1725643963141,19.6959,126.93,126.85,7.8833]
[1725643963142,7.8802,126.9,126.85,7.8833]
[1725643963953,7.8809,126.89,126.85,19.7074]
[1725643965057,7.8809,126.89,126.82,6.4774]
[1725643965058,7.883,126.86,126.82,6.4774]
[1725643965266,7.883,126.86,126.8,35.8591]
[1725643965554,7.883,126.86,126.81,7.8854]
[1725643966153,21.67297419,126.9,126.8,27.6013]
[1725643966154,7.8834,126.85,126.8,27.6013]
[1725643967461,35.2458,126.88,126.81,7.8854]
[1725643967662,20.0,126.87,126.81,7.8854]
[1725643968265,7.8837,126.85,126.8,27.6014]
[1725643968473,7.8841,126.84,126.8,27.6014]
[1725643968676,21.97114409,126.87,126.79,7.887]
[1725643968885,64.7071,126.86,126.76,7.8886]
[1725643969181,19.71,126.84,126.75,19.7226]
[1725643969384,7.8871,126.79,126.75,19.7226]
[1725643969561,6.319,126.82,126.75,19.7226]
[1725643969766,14.2047,126.82,126.77,7.8882]
[1725643970104,7.8871,126.79,126.75,19.7226]
[1725643970378,21.97162592,126.81,126.69,39.4642]
[1725643970379,1.97207338,126.78,126.69,39.4642]
[1725643970584,7.8883,126.77,126.72,7.8913]
[1725643970757,7.8878,126.78,126.73,7.8907]
[1725643971157,9.85925916,126.79,126.73,7.8907]
[1725643971356,29.85925916,126.79,126.73,7.8907]
[1725643971579,7.8893,126.76,126.71,19.7295]
[1725643971961,7.8883,126.77,126.71,27.6214]
[1725643972278,21.97257862,126.79,126.71,27.6214]
[1725643972279,20.0,126.79,126.71,27.6214]
[1725643972477,45.0,126.78,126.71,27.6214]
[1725643972678,21.97254843,126.77,126.68,19.7339]
[1725643972866,7.89,126.75,126.69,7.8931]
[1725643973066,21.97276729,126.74,126.68,27.6277]
[1725643973263,1.97276729,126.74,126.68,27.6277]
[1725643973468,20.0,126.77,126.68,27.6277]
[1725643973469,1.97297055,126.73,126.68,27.6277]
[1725643973670,20.0,126.77,126.68,27.6277]
[1725643973671,1.97298277,126.76,126.68,27.6277]
[1725643973880,45.0,126.76,126.69,7.8931]
[1725643974160,20.0,126.75,126.68,19.7339]
[1725643974363,1.9730239,126.74,126.65,19.7387]
[1725643974583,1.97343018,126.73,126.65,19.7387]
[1725643974876,66.97343018,126.73,126.65,19.7387]
[1725643975177,20.0,126.73,126.67,19.7355]
[1725643975359,1.97297926,126.77,126.67,19.7355]
[1725643975558,1.97297926,126.77,126.71,7.892]
[1725643975559,20.0,126.77,126.71,7.892]
[1725643975785,27.8887,126.77,126.71,7.8918]
[1725643975987,7.8877,126.78,126.71,19.7292]
[1725643976171,7.8883,126.77,126.72,7.8912]
[1725643976373,6.4943,126.82,126.73,21.30437015]
[1725643976568,1.97191961,126.83,126.75,19.7224]
[1725643976774,7.8852,126.82,126.77,7.8878]
[1725643978172,7.8846,126.83,126.78,7.887]
[1725643978378,7.8833,126.85,126.8,7.8863]
[1725643978699,7.8842,126.84,126.79,27.604]
[1725643978986,7.8856,126.82,126.76,29.18662853]
[1725643979172,16.6223,126.88,126.77,1.57709051]
[1725643979376,16.6223,126.88,126.81,7.8858]